[Event "Titled Tuesday Blitz May 23 Early 2023"]
[White "Ambartsumova, Karina"]
[Black "Gatterer, Florian"]
[WhiteFideId "4166299"]
[BlackFideId "811688"]
[WhiteElo "2240"]
[BlackElo "2221"]
[Result "1-0"]
[Round "08"]
[TimeControl "180+2"]
[Date "2023.05.23"]
[WhiteClock "0:00:07"]
[BlackClock "0:00:00"]

1. e4 {[%clk 0:03:00]}  c6 {[%clk 0:02:59]} 2. Ne2 {[%clk 0:03:00]}  d5 {[%clk 0:02:58]} 3. e5 {[%clk 0:03:00]}  d4 {[%clk 0:02:58]} 4. c3 {[%clk 0:03:00]}  c5 {[%clk 0:02:54]} 5. b4 {[%clk 0:03:00]}  Qd5 {[%clk 0:02:50]} 6. bxc5 {[%clk 0:02:57]}  dxc3 {[%clk 0:02:49]} 7. Nbxc3 {[%clk 0:02:55]}  Qxe5 {[%clk 0:02:48]} 8. d4 {[%clk 0:02:55]}  Qc7 {[%clk 0:02:34]} 9. Nd5 {[%clk 0:02:32]}  Qd8 {[%clk 0:02:23]} 10. Nec3 {[%clk 0:02:25]}  e6 {[%clk 0:02:20]} 11. Nf4 {[%clk 0:02:04]}  Nc6 {[%clk 0:02:16]} 12. Be3 {[%clk 0:02:03]}  Qa5 {[%clk 0:02:05]} 13. Qd2 {[%clk 0:01:53]}  Nf6 {[%clk 0:02:03]} 14. Be2 {[%clk 0:01:40]}  Be7 {[%clk 0:02:03]} 15. O-O {[%clk 0:01:38]}  O-O {[%clk 0:02:03]} 16. Rfd1 {[%clk 0:01:23]}  Bd7 {[%clk 0:01:55]} 17. Rab1 {[%clk 0:01:21]}  Qc7 {[%clk 0:01:38]} 18. Nd3 {[%clk 0:01:15]}  Nd5 {[%clk 0:01:30]} 19. Nxd5 {[%clk 0:01:09]}  exd5 {[%clk 0:01:30]} 20. Bf4 {[%clk 0:01:10]}  Qc8 {[%clk 0:01:28]} 21. Bf3 {[%clk 0:01:10]}  Nxd4 {[%clk 0:01:12]} 22. Bxd5 {[%clk 0:01:08]}  Bc6 {[%clk 0:01:13]} 23. Bxc6 {[%clk 0:00:52]}  Nxc6 {[%clk 0:00:49]} 24. Qb2 {[%clk 0:00:52]}  b6 {[%clk 0:00:38]} 25. cxb6 {[%clk 0:00:48]}  axb6 {[%clk 0:00:38]} 26. Qxb6 {[%clk 0:00:48]}  Rxa2 {[%clk 0:00:28]} 27. Rbc1 {[%clk 0:00:43]}  Ra6 {[%clk 0:00:27]} 28. Qb5 {[%clk 0:00:32]}  Qa8 {[%clk 0:00:25]} 29. Nc5 {[%clk 0:00:21]}  Ra5 {[%clk 0:00:20]} 30. Qb6 {[%clk 0:00:20]}  Bxc5 {[%clk 0:00:18]} 31. Rxc5 {[%clk 0:00:20]}  Rxc5 {[%clk 0:00:18]} 32. Qxc5 {[%clk 0:00:21]}  Rc8 {[%clk 0:00:17]} 33. h3 {[%clk 0:00:17]}  Na5 {[%clk 0:00:16]} 34. Qe7 {[%clk 0:00:16]}  Nc6 {[%clk 0:00:15]} 35. Qg5 {[%clk 0:00:15]}  h6 {[%clk 0:00:15]} 36. Qg3 {[%clk 0:00:14]}  Kh8 {[%clk 0:00:13]} 37. Rd7 {[%clk 0:00:12]}  Qa1+ {[%clk 0:00:08]} 38. Kh2 {[%clk 0:00:13]}  Qf6 {[%clk 0:00:08]} 39. Rd6 {[%clk 0:00:12]}  Qe7 {[%clk 0:00:07]} 40. Bxh6 {[%clk 0:00:12]}  g6 {[%clk 0:00:06]} 41. Bg5 {[%clk 0:00:11]}  Qe4 {[%clk 0:00:03]} 42. Bf6+ {[%clk 0:00:10]}  Kg8 {[%clk 0:00:00]} 43. Rxc6 {[%clk 0:00:07]} 1-0


[Site "https://www.chess.com"]

[Event "Titled Tuesday Blitz May 23 Early 2023"]
[White "Iskusnyh, Sergei"]
[Black "Jakubowska, Anna"]
[WhiteFideId "4120027"]
[BlackFideId "1121952"]
[WhiteElo "2492"]
[BlackElo "2001"]
[Result "1-0"]
[Round "08"]
[TimeControl "180+2"]
[Date "2023.05.23"]
[WhiteClock "0:00:36"]
[BlackClock "0:00:00"]

1. d4 {[%clk 0:03:00]}  d5 {[%clk 0:02:59]} 2. c4 {[%clk 0:02:58]}  c6 {[%clk 0:02:58]} 3. Nf3 {[%clk 0:02:58]}  Nf6 {[%clk 0:02:56]} 4. e3 {[%clk 0:02:58]}  e6 {[%clk 0:02:55]} 5. Bd3 {[%clk 0:02:56]}  dxc4 {[%clk 0:02:53]} 6. Bxc4 {[%clk 0:02:56]}  Bd6 {[%clk 0:02:54]} 7. O-O {[%clk 0:02:52]}  O-O {[%clk 0:02:53]} 8. Bd3 {[%clk 0:02:51]}  Nbd7 {[%clk 0:02:51]} 9. e4 {[%clk 0:02:51]}  e5 {[%clk 0:02:51]} 10. Nbd2 {[%clk 0:02:50]}  Qe7 {[%clk 0:02:50]} 11. dxe5 {[%clk 0:02:38]}  Nxe5 {[%clk 0:02:49]} 12. Nxe5 {[%clk 0:02:38]}  Bxe5 {[%clk 0:02:41]} 13. Qc2 {[%clk 0:02:34]}  Be6 {[%clk 0:02:34]} 14. Nf3 {[%clk 0:02:25]}  Bc7 {[%clk 0:02:31]} 15. Bg5 {[%clk 0:02:24]}  h6 {[%clk 0:02:21]} 16. Bh4 {[%clk 0:02:23]}  Bg4 {[%clk 0:02:08]} 17. e5 {[%clk 0:02:07]}  Bxe5 {[%clk 0:01:53]} 18. Nxe5 {[%clk 0:02:06]}  Qxe5 {[%clk 0:01:52]} 19. Rfe1 {[%clk 0:02:06]}  Qh5 {[%clk 0:01:36]} 20. Bxf6 {[%clk 0:01:51]}  gxf6 {[%clk 0:01:37]} 21. Re3 {[%clk 0:01:50]}  Kh8 {[%clk 0:01:29]} 22. Qc3 {[%clk 0:01:48]}  Qg5 {[%clk 0:00:55]} 23. h3 {[%clk 0:01:20]}  Bh5 {[%clk 0:00:53]} 24. Rae1 {[%clk 0:01:09]}  Rad8 {[%clk 0:00:46]} 25. Rg3 {[%clk 0:01:05]}  Qf4 {[%clk 0:00:43]} 26. Re4 {[%clk 0:01:03]}  Qf5 {[%clk 0:00:27]} 27. Rh4 {[%clk 0:00:57]}  Rxd3 {[%clk 0:00:10]} 28. Qxd3 {[%clk 0:00:56]}  Qxd3 {[%clk 0:00:08]} 29. Rxd3 {[%clk 0:00:55]}  Bg6 {[%clk 0:00:08]} 30. Rd7 {[%clk 0:00:54]}  Re8 {[%clk 0:00:08]} 31. Rxb7 {[%clk 0:00:50]}  Re1+ {[%clk 0:00:08]} 32. Kh2 {[%clk 0:00:50]}  Re2 {[%clk 0:00:09]} 33. Rf4 {[%clk 0:00:50]}  Kg7 {[%clk 0:00:08]} 34. g4 {[%clk 0:00:50]}  Rc2 {[%clk 0:00:06]} 35. Kg3 {[%clk 0:00:49]}  h5 {[%clk 0:00:06]} 36. gxh5 {[%clk 0:00:47]}  Bxh5 {[%clk 0:00:07]} 37. Ra4 {[%clk 0:00:41]}  f5 {[%clk 0:00:00]} 38. Rf4 {[%clk 0:00:36]} 1-0


[Site "https://www.chess.com"]

[Event "Titled Tuesday Blitz May 23 Early 2023"]
[White "Fernandez Siles, Luis"]
[Black "Kiremitciyan, Ari"]
[WhiteFideId "2209420"]
[BlackFideId "6373445"]
[WhiteElo "2195"]
[BlackElo "2181"]
[Result "0-1"]
[Round "08"]
[TimeControl "180+2"]
[Date "2023.05.23"]
[WhiteClock "0:00:12"]
[BlackClock "0:00:46"]

1. d4 {[%clk 0:03:00]}  Nf6 {[%clk 0:02:59]} 2. c4 {[%clk 0:03:00]}  e6 {[%clk 0:02:59]} 3. Nf3 {[%clk 0:02:59]}  d5 {[%clk 0:02:59]} 4. Nc3 {[%clk 0:02:56]}  Be7 {[%clk 0:02:59]} 5. e3 {[%clk 0:02:55]}  O-O {[%clk 0:02:59]} 6. Bd3 {[%clk 0:02:55]}  dxc4 {[%clk 0:02:59]} 7. Bxc4 {[%clk 0:02:55]}  a6 {[%clk 0:03:00]} 8. a4 {[%clk 0:02:52]}  b6 {[%clk 0:03:00]} 9. O-O {[%clk 0:02:52]}  Bb7 {[%clk 0:03:00]} 10. Qe2 {[%clk 0:02:52]}  c5 {[%clk 0:02:55]} 11. Rd1 {[%clk 0:02:50]}  Qc7 {[%clk 0:02:45]} 12. d5 {[%clk 0:02:32]}  exd5 {[%clk 0:02:43]} 13. Nxd5 {[%clk 0:02:33]}  Nxd5 {[%clk 0:02:43]} 14. Bxd5 {[%clk 0:02:33]}  Bxd5 {[%clk 0:02:44]} 15. Rxd5 {[%clk 0:02:34]}  Nc6 {[%clk 0:02:43]} 16. e4 {[%clk 0:02:02]}  Nb4 {[%clk 0:02:41]} 17. Rd1 {[%clk 0:01:47]}  c4 {[%clk 0:02:30]} 18. Bd2 {[%clk 0:01:43]}  Nd3 {[%clk 0:02:24]} 19. Bc3 {[%clk 0:01:42]}  Rad8 {[%clk 0:02:10]} 20. Nd4 {[%clk 0:01:29]}  Bc5 {[%clk 0:02:04]} 21. Nf5 {[%clk 0:01:01]}  Nxf2 {[%clk 0:01:25]} 22. Bd4 {[%clk 0:00:43]}  Nxd1 {[%clk 0:01:16]} 23. Rxd1 {[%clk 0:00:39]}  Qe5 {[%clk 0:01:12]} 24. Qh5 {[%clk 0:00:21]}  Rxd4 {[%clk 0:00:48]} 25. Nh6+ {[%clk 0:00:12]}  gxh6 {[%clk 0:00:46]} 26. Qxe5 {[%clk 0:00:12]}  Rxd1# {[%clk 0:00:46]} 0-1


[Site "https://www.chess.com"]

[Event "Titled Tuesday Blitz May 23 Early 2023"]
[White "Kohler, Aran"]
[Black "hakanazeri2"]
[WhiteFideId "1002856"]
[WhiteElo "2397"]
[BlackElo "2567"]
[Result "0-1"]
[Round "08"]
[TimeControl "180+2"]
[Date "2023.05.23"]
[WhiteClock "0:00:45"]
[BlackClock "0:00:38"]

1. d4 {[%clk 0:02:48]}  Nf6 {[%clk 0:02:57]} 2. c3 {[%clk 0:02:44]}  d5 {[%clk 0:02:54]} 3. Bg5 {[%clk 0:02:44]}  c6 {[%clk 0:02:43]} 4. Nd2 {[%clk 0:02:44]}  Bf5 {[%clk 0:02:41]} 5. e3 {[%clk 0:02:41]}  e6 {[%clk 0:02:38]} 6. f4 {[%clk 0:02:41]}  h6 {[%clk 0:02:38]} 7. Bxf6 {[%clk 0:02:35]}  Qxf6 {[%clk 0:02:36]} 8. Ngf3 {[%clk 0:02:36]}  Nd7 {[%clk 0:02:33]} 9. Ne5 {[%clk 0:02:33]}  Nxe5 {[%clk 0:02:30]} 10. fxe5 {[%clk 0:02:33]}  Qg5 {[%clk 0:02:29]} 11. Qf3 {[%clk 0:02:31]}  f6 {[%clk 0:02:04]} 12. exf6 {[%clk 0:02:30]}  gxf6 {[%clk 0:02:04]} 13. Be2 {[%clk 0:02:28]}  Bd6 {[%clk 0:02:03]} 14. Qh5+ {[%clk 0:02:26]}  Ke7 {[%clk 0:02:02]} 15. Qf3 {[%clk 0:02:12]}  Rag8 {[%clk 0:01:47]} 16. g3 {[%clk 0:02:12]}  h5 {[%clk 0:01:46]} 17. O-O-O {[%clk 0:02:03]}  h4 {[%clk 0:01:45]} 18. gxh4 {[%clk 0:01:52]}  Rxh4 {[%clk 0:01:46]} 19. h3 {[%clk 0:01:50]}  Rgh8 {[%clk 0:01:07]} 20. Rdg1 {[%clk 0:01:45]}  Rxh3 {[%clk 0:01:05]} 21. Rxg5 {[%clk 0:01:33]}  Rxh1+ {[%clk 0:01:04]} 22. Nf1 {[%clk 0:01:22]}  fxg5 {[%clk 0:01:03]} 23. Qg2 {[%clk 0:01:20]}  g4 {[%clk 0:00:55]} 24. Kd2 {[%clk 0:01:19]}  R8h2 {[%clk 0:00:40]} 25. Nxh2 {[%clk 0:01:18]}  Rxh2 {[%clk 0:00:41]} 26. Qg1 {[%clk 0:01:11]}  g3 {[%clk 0:00:41]} 27. Ke1 {[%clk 0:01:09]}  Be4 {[%clk 0:00:40]} 28. b4 {[%clk 0:00:54]}  Rh1 {[%clk 0:00:39]} 29. Kf1 {[%clk 0:00:50]}  g2+ {[%clk 0:00:38]} 30. Kf2 {[%clk 0:00:45]}  Bg3+ {[%clk 0:00:38]} 0-1


[Site "https://www.chess.com"]

[Event "Titled Tuesday Blitz May 23 Early 2023"]
[White "Kim, Sergey"]
[Black "Kabilov, Amin"]
[WhiteFideId "13700570"]
[BlackFideId "14700859"]
[WhiteElo "2560"]
[BlackElo "2110"]
[Result "0-1"]
[Round "08"]
[TimeControl "180+2"]
[Date "2023.05.23"]
[WhiteClock "0:00:12"]
[BlackClock "0:00:07"]

1. d4 {[%clk 0:03:00]}  Nf6 {[%clk 0:02:42]} 2. c4 {[%clk 0:03:01]}  c5 {[%clk 0:02:39]} 3. d5 {[%clk 0:03:00]}  e6 {[%clk 0:02:39]} 4. Nc3 {[%clk 0:03:00]}  exd5 {[%clk 0:02:39]} 5. cxd5 {[%clk 0:03:01]}  d6 {[%clk 0:02:40]} 6. e4 {[%clk 0:03:01]}  g6 {[%clk 0:02:40]} 7. Nge2 {[%clk 0:03:01]}  Bg7 {[%clk 0:02:41]} 8. Ng3 {[%clk 0:03:01]}  O-O {[%clk 0:02:40]} 9. Be2 {[%clk 0:03:02]}  a6 {[%clk 0:02:38]} 10. a4 {[%clk 0:03:01]}  h5 {[%clk 0:02:33]} 11. Bg5 {[%clk 0:03:00]}  Qb6 {[%clk 0:02:32]} 12. Qd2 {[%clk 0:03:00]}  Nh7 {[%clk 0:02:31]} 13. Bh4 {[%clk 0:02:59]}  Nd7 {[%clk 0:02:19]} 14. O-O {[%clk 0:02:53]}  Ne5 {[%clk 0:02:06]} 15. a5 {[%clk 0:02:51]}  Qc7 {[%clk 0:01:58]} 16. f4 {[%clk 0:02:43]}  Ng4 {[%clk 0:01:44]} 17. e5 {[%clk 0:02:33]}  dxe5 {[%clk 0:01:39]} 18. d6 {[%clk 0:02:33]}  Qd7 {[%clk 0:01:26]} 19. f5 {[%clk 0:02:31]}  Bh6 {[%clk 0:01:20]} 20. Qd3 {[%clk 0:02:20]}  c4 {[%clk 0:00:50]} 21. Qxc4 {[%clk 0:02:19]}  Ne3 {[%clk 0:00:45]} 22. Qe4 {[%clk 0:01:52]}  Qxd6 {[%clk 0:00:38]} 23. fxg6 {[%clk 0:01:44]}  fxg6 {[%clk 0:00:38]} 24. Rxf8+ {[%clk 0:01:20]}  Nxf8 {[%clk 0:00:38]} 25. Nf1 {[%clk 0:00:46]}  Bf5 {[%clk 0:00:26]} 26. Qa4 {[%clk 0:00:39]}  Qd4 {[%clk 0:00:20]} 27. Bf2 {[%clk 0:00:34]}  Qxa4 {[%clk 0:00:19]} 28. Nxa4 {[%clk 0:00:34]}  Nc2 {[%clk 0:00:17]} 29. Rd1 {[%clk 0:00:30]}  Nd4 {[%clk 0:00:16]} 30. Bd3 {[%clk 0:00:25]}  Bxd3 {[%clk 0:00:16]} 31. Rxd3 {[%clk 0:00:25]}  Rd8 {[%clk 0:00:16]} 32. Kh1 {[%clk 0:00:22]}  Nfe6 {[%clk 0:00:15]} 33. Nb6 {[%clk 0:00:22]}  Nf4 {[%clk 0:00:15]} 34. Rd1 {[%clk 0:00:20]}  Bg7 {[%clk 0:00:12]} 35. Ne3 {[%clk 0:00:20]}  Nfe2 {[%clk 0:00:08]} 36. Bh4 {[%clk 0:00:19]}  Rd6 {[%clk 0:00:07]} 37. Nec4 {[%clk 0:00:19]}  Rc6 {[%clk 0:00:08]} 38. h3 {[%clk 0:00:17]}  Nf4 {[%clk 0:00:08]} 39. Bg3 {[%clk 0:00:16]}  Nfe2 {[%clk 0:00:07]} 40. Kh2 {[%clk 0:00:15]}  Nxg3 {[%clk 0:00:07]} 41. Kxg3 {[%clk 0:00:15]}  Rc5 {[%clk 0:00:07]} 42. b4 {[%clk 0:00:14]}  Rb5 {[%clk 0:00:07]} 43. Nd6 {[%clk 0:00:12]}  Rxb4 {[%clk 0:00:07]} 44. Re1 {[%clk 0:00:12]}  Rb3+ {[%clk 0:00:08]} 45. Kh2 {[%clk 0:00:12]}  Bf8 {[%clk 0:00:08]} 46. Ne4 {[%clk 0:00:11]}  Bg7 {[%clk 0:00:09]} 47. Nd5 {[%clk 0:00:11]}  Nf5 {[%clk 0:00:09]} 48. g4 {[%clk 0:00:10]}  hxg4 {[%clk 0:00:09]} 49. hxg4 {[%clk 0:00:11]}  Rb2+ {[%clk 0:00:09]} 50. Kg1 {[%clk 0:00:11]}  Nd4 {[%clk 0:00:09]} 51. Ne7+ {[%clk 0:00:11]}  Kf7 {[%clk 0:00:09]} 52. Nd5 {[%clk 0:00:11]}  Nf3+ {[%clk 0:00:08]} 53. Kf1 {[%clk 0:00:11]}  Nxe1 {[%clk 0:00:09]} 54. Kxe1 {[%clk 0:00:12]}  Ke6 {[%clk 0:00:09]} 55. Nb6 {[%clk 0:00:11]}  Rb4 {[%clk 0:00:07]} 56. Nc5+ {[%clk 0:00:11]}  Kd6 {[%clk 0:00:06]} 57. Nxb7+ {[%clk 0:00:12]}  Kc6 {[%clk 0:00:07]} 58. Nd8+ {[%clk 0:00:12]}  Kb5 {[%clk 0:00:07]} 59. Ne6 {[%clk 0:00:12]}  Bf6 {[%clk 0:00:07]} 60. Nd5 {[%clk 0:00:13]}  Kxa5 {[%clk 0:00:06]} 61. Nxf6 {[%clk 0:00:13]}  Rb6 {[%clk 0:00:06]} 62. g5 {[%clk 0:00:13]}  Rxe6 {[%clk 0:00:06]} 63. Ke2 {[%clk 0:00:14]}  Kb5 {[%clk 0:00:06]} 64. Ke3 {[%clk 0:00:15]}  Kc6 {[%clk 0:00:06]} 65. Ke4 {[%clk 0:00:16]}  Rxf6 {[%clk 0:00:05]} 66. gxf6 {[%clk 0:00:16]}  Kd6 {[%clk 0:00:06]} 67. f7 {[%clk 0:00:16]}  Ke7 {[%clk 0:00:06]} 68. Kxe5 {[%clk 0:00:12]}  Kxf7 {[%clk 0:00:07]} 0-1


[Site "https://www.chess.com"]

[Event "Titled Tuesday Blitz May 23 Early 2023"]
[White "Davidson, Kevin"]
[Black "surrenderPLS"]
[WhiteFideId "2056810"]
[WhiteElo "2151"]
[BlackElo "2537"]
[Result "0-1"]
[Round "08"]
[TimeControl "180+2"]
[Date "2023.05.23"]
[WhiteClock "0:00:34"]
[BlackClock "0:01:33"]

1. e4 {[%clk 0:03:00]}  c5 {[%clk 0:02:59]} 2. Nf3 {[%clk 0:03:00]}  d6 {[%clk 0:03:00]} 3. d4 {[%clk 0:03:00]}  cxd4 {[%clk 0:03:01]} 4. Nxd4 {[%clk 0:03:01]}  Nf6 {[%clk 0:03:01]} 5. Nc3 {[%clk 0:03:02]}  e5 {[%clk 0:03:02]} 6. Bb5+ {[%clk 0:03:01]}  Nbd7 {[%clk 0:03:02]} 7. Nde2 {[%clk 0:02:56]}  a6 {[%clk 0:03:01]} 8. Bxd7+ {[%clk 0:02:53]}  Bxd7 {[%clk 0:03:00]} 9. Bg5 {[%clk 0:02:53]}  Bc6 {[%clk 0:02:59]} 10. Bxf6 {[%clk 0:02:52]}  Qxf6 {[%clk 0:02:57]} 11. Nd5 {[%clk 0:02:52]}  Qd8 {[%clk 0:02:57]} 12. Nec3 {[%clk 0:02:51]}  g6 {[%clk 0:02:57]} 13. O-O {[%clk 0:02:49]}  Bh6 {[%clk 0:02:55]} 14. Qd3 {[%clk 0:02:47]}  O-O {[%clk 0:02:55]} 15. Rad1 {[%clk 0:02:46]}  b5 {[%clk 0:02:53]} 16. Nb4 {[%clk 0:02:40]}  Bb7 {[%clk 0:02:49]} 17. Qxd6 {[%clk 0:02:39]}  Qxd6 {[%clk 0:02:49]} 18. Rxd6 {[%clk 0:02:38]}  Rfd8 {[%clk 0:02:47]} 19. Rfd1 {[%clk 0:02:36]}  Rxd6 {[%clk 0:02:46]} 20. Rxd6 {[%clk 0:02:37]}  Bf8 {[%clk 0:02:45]} 21. Rd7 {[%clk 0:02:34]}  Bxb4 {[%clk 0:02:41]} 22. Rxb7 {[%clk 0:02:33]}  Bxc3 {[%clk 0:02:41]} 23. bxc3 {[%clk 0:02:33]}  Rc8 {[%clk 0:02:40]} 24. Rb6 {[%clk 0:02:24]}  Rxc3 {[%clk 0:02:38]} 25. Rxa6 {[%clk 0:02:24]}  Rxc2 {[%clk 0:02:37]} 26. f3 {[%clk 0:02:10]}  Kg7 {[%clk 0:02:34]} 27. Rb6 {[%clk 0:01:57]}  Rxa2 {[%clk 0:02:23]} 28. Rxb5 {[%clk 0:01:56]}  f6 {[%clk 0:02:21]} 29. Rb6 {[%clk 0:01:50]}  g5 {[%clk 0:02:12]} 30. g4 {[%clk 0:01:43]}  Kg6 {[%clk 0:02:08]} 31. Rc6 {[%clk 0:01:32]}  Ra8 {[%clk 0:01:58]} 32. Kg2 {[%clk 0:01:29]}  Rh8 {[%clk 0:01:59]} 33. h4 {[%clk 0:01:19]}  gxh4 {[%clk 0:01:53]} 34. Kh3 {[%clk 0:01:19]}  h5 {[%clk 0:01:50]} 35. Kxh4 {[%clk 0:01:15]}  hxg4+ {[%clk 0:01:51]} 36. Kxg4 {[%clk 0:01:16]}  Rh1 {[%clk 0:01:51]} 37. Rb6 {[%clk 0:01:11]}  Rg1+ {[%clk 0:01:50]} 38. Kh4 {[%clk 0:01:10]}  Rf1 {[%clk 0:01:47]} 39. Kg4 {[%clk 0:01:10]}  Rg1+ {[%clk 0:01:43]} 40. Kh4 {[%clk 0:01:10]}  Rg2 {[%clk 0:01:44]} 41. Ra6 {[%clk 0:01:09]}  Rb2 {[%clk 0:01:40]} 42. Kg4 {[%clk 0:01:07]}  Rb4 {[%clk 0:01:38]} 43. Rc6 {[%clk 0:01:06]}  Rb3 {[%clk 0:01:38]} 44. Ra6 {[%clk 0:01:05]}  Kf7 {[%clk 0:01:38]} 45. Rc6 {[%clk 0:01:03]}  Kg6 {[%clk 0:01:36]} 46. Ra6 {[%clk 0:01:03]}  Rb8 {[%clk 0:01:36]} 47. Rc6 {[%clk 0:01:03]}  Rg8 {[%clk 0:01:36]} 48. Ra6 {[%clk 0:00:59]}  Kf7+ {[%clk 0:01:36]} 49. Kh4 {[%clk 0:00:57]}  Rg6 {[%clk 0:01:36]} 50. Rb6 {[%clk 0:00:55]}  Ke7 {[%clk 0:01:36]} 51. Ra6 {[%clk 0:00:55]}  Kd7 {[%clk 0:01:35]} 52. Rb6 {[%clk 0:00:55]}  Rh6+ {[%clk 0:01:31]} 53. Kg4 {[%clk 0:00:55]}  f5+ {[%clk 0:01:31]} 54. Kxf5 {[%clk 0:00:50]}  Rxb6 {[%clk 0:01:32]} 55. Kxe5 {[%clk 0:00:50]}  Ke7 {[%clk 0:01:32]} 56. Kf5 {[%clk 0:00:46]}  Rb5+ {[%clk 0:01:33]} 57. e5 {[%clk 0:00:46]}  Rb6 {[%clk 0:01:34]} 58. f4 {[%clk 0:00:47]}  Kf7 {[%clk 0:01:33]} 59. Ke4 {[%clk 0:00:44]}  Rb4+ {[%clk 0:01:33]} 60. Kf5 {[%clk 0:00:43]}  Rc4 {[%clk 0:01:33]} 61. e6+ {[%clk 0:00:36]}  Ke7 {[%clk 0:01:32]} 62. Ke5 {[%clk 0:00:34]}  Rc5+ {[%clk 0:01:33]} 0-1


[Site "https://www.chess.com"]

[Event "Titled Tuesday Blitz May 23 Early 2023"]
[White "Gutkin, Ilya"]
[Black "cristianserban1"]
[WhiteFideId "16203470"]
[WhiteElo "2265"]
[BlackElo "2521"]
[Result "1-0"]
[Round "08"]
[TimeControl "180+2"]
[Date "2023.05.23"]
[WhiteClock "0:00:45"]
[BlackClock "0:00:00"]

1. Nf3 {[%clk 0:03:00]}  b5 {[%clk 0:02:59]} 2. e4 {[%clk 0:03:00]}  Bb7 {[%clk 0:02:59]} 3. Bxb5 {[%clk 0:03:01]}  Bxe4 {[%clk 0:02:59]} 4. O-O {[%clk 0:03:01]}  e6 {[%clk 0:02:54]} 5. Nc3 {[%clk 0:02:58]}  Bb7 {[%clk 0:02:54]} 6. d4 {[%clk 0:02:58]}  a6 {[%clk 0:02:48]} 7. Ba4 {[%clk 0:02:57]}  Nf6 {[%clk 0:02:32]} 8. Bg5 {[%clk 0:02:57]}  Be7 {[%clk 0:02:32]} 9. Re1 {[%clk 0:02:52]}  O-O {[%clk 0:02:30]} 10. Qd3 {[%clk 0:02:48]}  d5 {[%clk 0:02:27]} 11. Ne5 {[%clk 0:02:44]}  h6 {[%clk 0:02:14]} 12. Bh4 {[%clk 0:02:43]}  Nfd7 {[%clk 0:02:09]} 13. Bxe7 {[%clk 0:02:41]}  Qxe7 {[%clk 0:02:10]} 14. Nxd7 {[%clk 0:02:38]}  Nxd7 {[%clk 0:02:10]} 15. Bxd7 {[%clk 0:02:38]}  Qxd7 {[%clk 0:02:10]} 16. b3 {[%clk 0:02:36]}  Bc6 {[%clk 0:01:59]} 17. Qe3 {[%clk 0:02:32]}  Qd6 {[%clk 0:01:59]} 18. Ne2 {[%clk 0:02:25]}  a5 {[%clk 0:01:52]} 19. Nf4 {[%clk 0:02:25]}  a4 {[%clk 0:01:48]} 20. Nd3 {[%clk 0:02:24]}  axb3 {[%clk 0:01:41]} 21. axb3 {[%clk 0:02:23]}  Rxa1 {[%clk 0:01:39]} 22. Rxa1 {[%clk 0:02:24]}  Ra8 {[%clk 0:01:39]} 23. Rxa8+ {[%clk 0:02:23]}  Bxa8 {[%clk 0:01:40]} 24. Qe5 {[%clk 0:02:20]}  Bc6 {[%clk 0:01:11]} 25. Qxd6 {[%clk 0:02:19]}  cxd6 {[%clk 0:01:12]} 26. f4 {[%clk 0:02:18]}  Kf8 {[%clk 0:01:10]} 27. Kf2 {[%clk 0:02:18]}  Ke7 {[%clk 0:01:11]} 28. Ke3 {[%clk 0:02:18]}  Bb5 {[%clk 0:01:11]} 29. Nb4 {[%clk 0:02:18]}  Kd7 {[%clk 0:01:09]} 30. g4 {[%clk 0:02:13]}  g5 {[%clk 0:01:07]} 31. fxg5 {[%clk 0:02:11]}  hxg5 {[%clk 0:01:08]} 32. Kf3 {[%clk 0:01:57]}  Ke7 {[%clk 0:00:59]} 33. Kg3 {[%clk 0:01:57]}  Kf6 {[%clk 0:00:59]} 34. h4 {[%clk 0:01:57]}  gxh4+ {[%clk 0:00:59]} 35. Kxh4 {[%clk 0:01:58]}  Kg6 {[%clk 0:01:00]} 36. Kg3 {[%clk 0:01:42]}  Kg5 {[%clk 0:00:58]} 37. Kf3 {[%clk 0:01:32]}  Bd7 {[%clk 0:00:30]} 38. Nd3 {[%clk 0:01:29]}  f6 {[%clk 0:00:25]} 39. Nf2 {[%clk 0:01:02]}  e5 {[%clk 0:00:21]} 40. Kg3 {[%clk 0:01:01]}  f5 {[%clk 0:00:07]} 41. gxf5 {[%clk 0:00:57]}  Kxf5 {[%clk 0:00:04]} 42. Kf3 {[%clk 0:00:56]}  exd4 {[%clk 0:00:01]} 43. Nd3 {[%clk 0:00:54]}  Bb5 {[%clk 0:00:01]} 44. Ke2 {[%clk 0:00:45]}  Ke4 {[%clk 0:00:00]} 45. Kd2 {[%clk 0:00:45]} 1-0


[Site "https://www.chess.com"]

[Event "Titled Tuesday Blitz May 23 Early 2023"]
[White "zsizsi99"]
[Black "Hamley, Ryan"]
[BlackFideId "30959497"]
[WhiteElo "2362"]
[BlackElo "2499"]
[Result "1-0"]
[Round "08"]
[TimeControl "180+2"]
[Date "2023.05.23"]
[WhiteClock "0:00:23"]
[BlackClock "0:00:19"]

1. e4 {[%clk 0:02:57]}  d6 {[%clk 0:02:49]} 2. d4 {[%clk 0:02:57]}  Nf6 {[%clk 0:02:50]} 3. Nc3 {[%clk 0:02:58]}  c6 {[%clk 0:02:51]} 4. Bg5 {[%clk 0:02:55]}  Nbd7 {[%clk 0:02:48]} 5. Qd2 {[%clk 0:02:55]}  e5 {[%clk 0:02:46]} 6. Nf3 {[%clk 0:02:52]}  Be7 {[%clk 0:02:46]} 7. O-O-O {[%clk 0:02:52]}  Qc7 {[%clk 0:02:46]} 8. Rg1 {[%clk 0:02:51]}  O-O {[%clk 0:02:40]} 9. g4 {[%clk 0:02:51]}  b5 {[%clk 0:02:39]} 10. Bxf6 {[%clk 0:02:49]}  Nxf6 {[%clk 0:02:38]} 11. g5 {[%clk 0:02:49]}  Nh5 {[%clk 0:02:34]} 12. h4 {[%clk 0:02:44]}  a5 {[%clk 0:02:29]} 13. Ne2 {[%clk 0:02:38]}  Be6 {[%clk 0:01:56]} 14. Kb1 {[%clk 0:02:32]}  Rfd8 {[%clk 0:01:47]} 15. Ng3 {[%clk 0:02:31]}  Nf4 {[%clk 0:01:42]} 16. Ne2 {[%clk 0:01:58]}  Nxe2 {[%clk 0:01:35]} 17. Bxe2 {[%clk 0:01:55]}  d5 {[%clk 0:01:36]} 18. exd5 {[%clk 0:01:45]}  Bxd5 {[%clk 0:01:24]} 19. Nxe5 {[%clk 0:01:44]}  c5 {[%clk 0:01:24]} 20. Bxb5 {[%clk 0:01:28]}  cxd4 {[%clk 0:01:22]} 21. Nd3 {[%clk 0:01:28]}  a4 {[%clk 0:01:20]} 22. Nf4 {[%clk 0:00:51]}  Rab8 {[%clk 0:01:05]} 23. Nxd5 {[%clk 0:00:50]}  Rxd5 {[%clk 0:01:05]} 24. Bxa4 {[%clk 0:00:50]}  Bb4 {[%clk 0:00:59]} 25. Qd3 {[%clk 0:00:45]}  Qf4 {[%clk 0:00:48]} 26. Bb3 {[%clk 0:00:44]}  Rd6 {[%clk 0:00:48]} 27. Qg3 {[%clk 0:00:43]}  Qxg3 {[%clk 0:00:42]} 28. Rxg3 {[%clk 0:00:42]}  Re8 {[%clk 0:00:43]} 29. Rf3 {[%clk 0:00:32]}  Rd7 {[%clk 0:00:36]} 30. c3 {[%clk 0:00:32]}  Bc5 {[%clk 0:00:33]} 31. cxd4 {[%clk 0:00:30]}  Red8 {[%clk 0:00:27]} 32. dxc5 {[%clk 0:00:23]}  Rxd1+ {[%clk 0:00:27]} 33. Bxd1 {[%clk 0:00:23]}  Rxd1+ {[%clk 0:00:28]} 34. Kc2 {[%clk 0:00:24]}  Rd8 {[%clk 0:00:26]} 35. c6 {[%clk 0:00:24]}  Kf8 {[%clk 0:00:26]} 36. c7 {[%clk 0:00:23]}  Rb8 {[%clk 0:00:25]} 37. Rc3 {[%clk 0:00:24]}  Rc8 {[%clk 0:00:24]} 38. b4 {[%clk 0:00:23]}  Ke7 {[%clk 0:00:25]} 39. b5 {[%clk 0:00:23]}  Kd6 {[%clk 0:00:19]} 40. b6 {[%clk 0:00:23]} 1-0


[Site "https://www.chess.com"]